[Event "Titled Tuesday Blitz March 21 Early 2023"]
[White "Ovezdurdyyeva, Jemal"]
[Black "Sanchez, Robert"]
[WhiteFideId "14001888"]
[BlackFideId "2034360"]
[WhiteElo "2043"]
[BlackElo "2179"]
[Result "1-0"]
[Round "04"]
[TimeControl "180+2"]
[Date "2023.03.21"]
[WhiteClock "0:00:08"]
[BlackClock "0:00:09"]

1. e4 {[%clk 0:03:00]}  e6 {[%clk 0:02:59]} 2. d4 {[%clk 0:03:00]}  d5 {[%clk 0:02:59]} 3. Nd2 {[%clk 0:03:01]}  Nf6 {[%clk 0:02:59]} 4. e5 {[%clk 0:02:53]}  Nfd7 {[%clk 0:02:56]} 5. Ngf3 {[%clk 0:02:53]}  c5 {[%clk 0:02:55]} 6. c3 {[%clk 0:02:54]}  Nc6 {[%clk 0:02:56]} 7. Be2 {[%clk 0:02:50]}  Qb6 {[%clk 0:02:56]} 8. Nb3 {[%clk 0:02:49]}  a5 {[%clk 0:02:54]} 9. a4 {[%clk 0:02:46]}  cxd4 {[%clk 0:02:53]} 10. cxd4 {[%clk 0:02:46]}  Be7 {[%clk 0:02:51]} 11. O-O {[%clk 0:02:46]}  O-O {[%clk 0:02:51]} 12. Be3 {[%clk 0:02:45]}  f6 {[%clk 0:02:51]} 13. exf6 {[%clk 0:02:43]}  Nxf6 {[%clk 0:02:51]} 14. Ne5 {[%clk 0:02:41]}  Bd7 {[%clk 0:02:43]} 15. Nxd7 {[%clk 0:02:36]}  Nxd7 {[%clk 0:02:42]} 16. Bg4 {[%clk 0:02:36]}  Nb4 {[%clk 0:02:38]} 17. Nc5 {[%clk 0:02:33]}  Nxc5 {[%clk 0:02:35]} 18. dxc5 {[%clk 0:02:33]}  Bxc5 {[%clk 0:02:36]} 19. Bxc5 {[%clk 0:02:31]}  Qxc5 {[%clk 0:02:36]} 20. Bxe6+ {[%clk 0:02:31]}  Kh8 {[%clk 0:02:36]} 21. Rc1 {[%clk 0:02:31]}  Qd6 {[%clk 0:02:36]} 22. Bg4 {[%clk 0:02:28]}  d4 {[%clk 0:02:28]} 23. Bf3 {[%clk 0:02:21]}  Rab8 {[%clk 0:02:14]} 24. Rc4 {[%clk 0:02:15]}  d3 {[%clk 0:02:13]} 25. Qd2 {[%clk 0:02:15]}  b6 {[%clk 0:02:00]} 26. Rh4 {[%clk 0:02:15]}  Qf6 {[%clk 0:01:53]} 27. Rh3 {[%clk 0:02:12]}  Rbe8 {[%clk 0:01:41]} 28. Bh5 {[%clk 0:01:32]}  g6 {[%clk 0:01:31]} 29. Bg4 {[%clk 0:01:29]}  Re4 {[%clk 0:01:18]} 30. Bf3 {[%clk 0:01:03]}  Re7 {[%clk 0:01:13]} 31. Rc1 {[%clk 0:01:00]}  Qf4 {[%clk 0:00:46]} 32. Qc3+ {[%clk 0:00:58]}  Qe5 {[%clk 0:00:44]} 33. Qd2 {[%clk 0:00:52]}  Rfe8 {[%clk 0:00:39]} 34. g4 {[%clk 0:00:45]}  Rf8 {[%clk 0:00:16]} 35. Kg2 {[%clk 0:00:38]}  Qf4 {[%clk 0:00:15]} 36. Qc3+ {[%clk 0:00:37]}  Qf6 {[%clk 0:00:15]} 37. Qc4 {[%clk 0:00:23]}  Re2 {[%clk 0:00:12]} 38. b3 {[%clk 0:00:18]}  Rc2 {[%clk 0:00:09]} 39. Rxc2 {[%clk 0:00:14]}  dxc2 {[%clk 0:00:10]} 40. Qc7 {[%clk 0:00:09]}  Qb2 {[%clk 0:00:09]} 41. Qxh7# {[%clk 0:00:08]} 1-0


[Site "https://www.chess.com"]

[Event "Titled Tuesday Blitz March 21 Early 2023"]
[White "Kornyukov, Alexey"]
[Black "Van Osch, Mees"]
[WhiteFideId "4150457"]
[BlackFideId "1035967"]
[WhiteElo "2352"]
[BlackElo "2324"]
[Result "0-1"]
[Round "04"]
[TimeControl "180+2"]
[Date "2023.03.21"]
[WhiteClock "0:00:34"]
[BlackClock "0:00:49"]

1. e4 {[%clk 0:03:00]}  c5 {[%clk 0:02:59]} 2. Nf3 {[%clk 0:02:57]}  e6 {[%clk 0:02:59]} 3. c3 {[%clk 0:02:56]}  d5 {[%clk 0:02:58]} 4. exd5 {[%clk 0:02:54]}  exd5 {[%clk 0:02:59]} 5. d4 {[%clk 0:02:55]}  Nf6 {[%clk 0:02:59]} 6. Be2 {[%clk 0:02:53]}  Nc6 {[%clk 0:02:59]} 7. Bg5 {[%clk 0:02:53]}  c4 {[%clk 0:02:58]} 8. O-O {[%clk 0:02:53]}  Be7 {[%clk 0:02:58]} 9. Ne5 {[%clk 0:02:52]}  Bf5 {[%clk 0:02:57]} 10. Qa4 {[%clk 0:02:50]}  O-O {[%clk 0:02:53]} 11. Nxc6 {[%clk 0:02:47]}  bxc6 {[%clk 0:02:54]} 12. Qxc6 {[%clk 0:02:46]}  Rb8 {[%clk 0:02:54]} 13. b4 {[%clk 0:02:27]}  a5 {[%clk 0:02:26]} 14. a3 {[%clk 0:02:00]}  Bd7 {[%clk 0:02:19]} 15. Qa6 {[%clk 0:01:53]}  Ra8 {[%clk 0:02:18]} 16. Qb7 {[%clk 0:01:53]}  axb4 {[%clk 0:02:18]} 17. Bxf6 {[%clk 0:01:49]}  Bxf6 {[%clk 0:01:44]} 18. Qxd5 {[%clk 0:01:46]}  b3 {[%clk 0:01:26]} 19. Qxc4 {[%clk 0:01:37]}  b2 {[%clk 0:01:23]} 20. Ra2 {[%clk 0:01:35]}  Be6 {[%clk 0:01:23]} 21. Rxb2 {[%clk 0:01:21]}  Bxc4 {[%clk 0:01:22]} 22. Bxc4 {[%clk 0:01:21]}  Qc7 {[%clk 0:01:18]} 23. Nd2 {[%clk 0:01:14]}  Rxa3 {[%clk 0:01:17]} 24. Rfb1 {[%clk 0:01:13]}  Rxc3 {[%clk 0:01:15]} 25. Rb7 {[%clk 0:01:11]}  Qf4 {[%clk 0:01:04]} 26. Rxf7 {[%clk 0:00:45]}  Rxf7 {[%clk 0:00:57]} 27. Rb7 {[%clk 0:00:41]}  Rc1+ {[%clk 0:00:49]} 28. Nf1 {[%clk 0:00:37]}  Rxf1+ {[%clk 0:00:50]} 29. Kxf1 {[%clk 0:00:34]}  Qc1+ {[%clk 0:00:48]} 30. Ke2 {[%clk 0:00:34]}  Qxc4+ {[%clk 0:00:49]} 0-1


[Site "https://www.chess.com"]

[Event "Titled Tuesday Blitz March 21 Early 2023"]
[White "lluiss"]
[Black "Alahakoon, Isuru"]
[BlackFideId "9900993"]
[WhiteElo "2151"]
[BlackElo "1995"]
[Result "1-0"]
[Round "04"]
[TimeControl "180+2"]
[Date "2023.03.21"]
[WhiteClock "0:00:06"]
[BlackClock "0:00:01"]

1. Nf3 {[%clk 0:03:00]}  d5 {[%clk 0:03:00]} 2. d4 {[%clk 0:02:59]}  Bf5 {[%clk 0:02:59]} 3. c4 {[%clk 0:02:59]}  e6 {[%clk 0:02:59]} 4. Qb3 {[%clk 0:02:57]}  Nc6 {[%clk 0:02:59]} 5. Bd2 {[%clk 0:02:56]}  Rb8 {[%clk 0:02:57]} 6. cxd5 {[%clk 0:02:55]}  exd5 {[%clk 0:02:55]} 7. Nc3 {[%clk 0:02:56]}  Nf6 {[%clk 0:02:52]} 8. Bg5 {[%clk 0:02:54]}  Nb4 {[%clk 0:02:26]} 9. Rc1 {[%clk 0:02:49]}  c6 {[%clk 0:02:20]} 10. a3 {[%clk 0:02:43]}  Na6 {[%clk 0:02:17]} 11. Bxf6 {[%clk 0:02:40]}  Qxf6 {[%clk 0:02:16]} 12. e4 {[%clk 0:02:39]}  dxe4 {[%clk 0:02:09]} 13. Ne5 {[%clk 0:02:27]}  Nc7 {[%clk 0:02:00]} 14. Bc4 {[%clk 0:02:20]}  Bg6 {[%clk 0:01:52]} 15. O-O {[%clk 0:02:05]}  Bd6 {[%clk 0:01:39]} 16. Nxc6 {[%clk 0:00:48]}  Bxh2+ {[%clk 0:01:26]} 17. Kxh2 {[%clk 0:00:47]}  Qxc6 {[%clk 0:01:27]} 18. d5 {[%clk 0:00:45]}  Qd6+ {[%clk 0:01:24]} 19. Kg1 {[%clk 0:00:45]}  O-O {[%clk 0:01:23]} 20. Nb5 {[%clk 0:00:45]}  Nxb5 {[%clk 0:01:23]} 21. Qxb5 {[%clk 0:00:44]}  a6 {[%clk 0:01:18]} 22. Qb3 {[%clk 0:00:41]}  b5 {[%clk 0:01:17]} 23. Be2 {[%clk 0:00:42]}  Rfd8 {[%clk 0:01:14]} 24. Rfd1 {[%clk 0:00:40]}  Rbc8 {[%clk 0:01:05]} 25. Rxc8 {[%clk 0:00:38]}  Rxc8 {[%clk 0:01:05]} 26. a4 {[%clk 0:00:31]}  b4 {[%clk 0:00:58]} 27. Qe3 {[%clk 0:00:20]}  f5 {[%clk 0:00:52]} 28. Qa7 {[%clk 0:00:18]}  a5 {[%clk 0:00:24]} 29. Qxa5 {[%clk 0:00:18]}  Rc2 {[%clk 0:00:20]} 30. Qa8+ {[%clk 0:00:17]}  Kf7 {[%clk 0:00:18]} 31. Qb7+ {[%clk 0:00:16]}  Kf6 {[%clk 0:00:17]} 32. Bb5 {[%clk 0:00:14]}  Qc5 {[%clk 0:00:13]} 33. Rf1 {[%clk 0:00:13]}  e3 {[%clk 0:00:13]} 34. Qc6+ {[%clk 0:00:07]}  Qxc6 {[%clk 0:00:11]} 35. Bxc6 {[%clk 0:00:07]}  e2 {[%clk 0:00:11]} 36. Re1 {[%clk 0:00:08]}  f4 {[%clk 0:00:11]} 37. f3 {[%clk 0:00:08]}  Bd3 {[%clk 0:00:10]} 38. Kf2 {[%clk 0:00:07]}  Ke5 {[%clk 0:00:10]} 39. Bb5 {[%clk 0:00:06]}  Bxb5 {[%clk 0:00:09]} 40. axb5 {[%clk 0:00:07]}  Rxb2 {[%clk 0:00:09]} 41. b6 {[%clk 0:00:06]}  Kd6 {[%clk 0:00:03]} 42. Rc1 {[%clk 0:00:07]}  Ra2 {[%clk 0:00:02]} 43. b7 {[%clk 0:00:06]}  e1=Q+ {[%clk 0:00:01]} 44. Kxe1 {[%clk 0:00:06]}  b3 {[%clk 0:00:01]} 45. b8=Q+ {[%clk 0:00:06]}  Kxd5 {[%clk 0:00:01]} 46. Qxb3+ {[%clk 0:00:06]} 1-0


[Site "https://www.chess.com"]

[Event "Titled Tuesday Blitz March 21 Early 2023"]
[White "Friedel, Tom"]
[Black "Michalski, Olaf"]
[WhiteFideId "2002108"]
[BlackFideId "1106740"]
[WhiteElo "2305"]
[BlackElo "2173"]
[Result "1-0"]
[Round "04"]
[TimeControl "180+2"]
[Date "2023.03.21"]
[WhiteClock "0:01:19"]
[BlackClock "0:00:55"]

1. e4 {[%clk 0:03:00]}  c5 {[%clk 0:02:59]} 2. Nf3 {[%clk 0:03:00]}  d6 {[%clk 0:02:59]} 3. c3 {[%clk 0:03:00]}  Nf6 {[%clk 0:02:57]} 4. Bd3 {[%clk 0:03:00]}  e5 {[%clk 0:02:57]} 5. Bc2 {[%clk 0:03:00]}  Be7 {[%clk 0:02:58]} 6. O-O {[%clk 0:03:01]}  O-O {[%clk 0:02:58]} 7. d4 {[%clk 0:03:02]}  Qc7 {[%clk 0:02:57]} 8. Nbd2 {[%clk 0:02:57]}  Nc6 {[%clk 0:02:56]} 9. d5 {[%clk 0:02:57]}  Nb8 {[%clk 0:02:54]} 10. Re1 {[%clk 0:02:57]}  Nbd7 {[%clk 0:02:43]} 11. Nf1 {[%clk 0:02:57]}  b5 {[%clk 0:02:34]} 12. Ng3 {[%clk 0:02:57]}  Re8 {[%clk 0:02:32]} 13. Nf5 {[%clk 0:02:48]}  Bf8 {[%clk 0:02:30]} 14. N3h4 {[%clk 0:02:49]}  c4 {[%clk 0:02:18]} 15. Qf3 {[%clk 0:02:47]}  Nc5 {[%clk 0:02:16]} 16. b4 {[%clk 0:02:27]}  cxb3 {[%clk 0:02:14]} 17. axb3 {[%clk 0:02:28]}  Ncd7 {[%clk 0:01:36]} 18. Bg5 {[%clk 0:02:21]}  Kh8 {[%clk 0:01:33]} 19. b4 {[%clk 0:02:08]}  Bb7 {[%clk 0:01:31]} 20. Ra5 {[%clk 0:01:37]}  a6 {[%clk 0:01:23]} 21. h3 {[%clk 0:01:30]}  Rac8 {[%clk 0:01:23]} 22. Re3 {[%clk 0:01:29]}  h6 {[%clk 0:01:13]} 23. Nxh6 {[%clk 0:01:26]}  gxh6 {[%clk 0:01:05]} 24. Bxf6+ {[%clk 0:01:26]}  Nxf6 {[%clk 0:01:05]} 25. Qxf6+ {[%clk 0:01:26]}  Bg7 {[%clk 0:01:06]} 26. Qf3 {[%clk 0:01:22]}  Qe7 {[%clk 0:00:56]} 27. Nf5 {[%clk 0:01:22]}  Qg5 {[%clk 0:00:55]} 28. Nxd6 {[%clk 0:01:19]} 1-0


[Site "https://www.chess.com"]

[Event "Titled Tuesday Blitz March 21 Early 2023"]
[White "dorpato"]
[Black "Kraus, Tomas"]
[BlackFideId "331708"]
[WhiteElo "1997"]
[BlackElo "2389"]
[Result "0-1"]
[Round "04"]
[TimeControl "180+2"]
[Date "2023.03.21"]
[WhiteClock "0:00:02"]
[BlackClock "0:00:02"]

1. d4 {[%clk 0:03:00]}  Nf6 {[%clk 0:02:59]} 2. Nf3 {[%clk 0:02:58]}  c5 {[%clk 0:02:58]} 3. e3 {[%clk 0:02:55]}  d5 {[%clk 0:02:57]} 4. Nbd2 {[%clk 0:02:43]}  Bf5 {[%clk 0:02:54]} 5. Bd3 {[%clk 0:02:41]}  Bxd3 {[%clk 0:02:42]} 6. cxd3 {[%clk 0:02:41]}  cxd4 {[%clk 0:02:42]} 7. Nxd4 {[%clk 0:02:41]}  e5 {[%clk 0:02:41]} 8. N4b3 {[%clk 0:02:40]}  Nc6 {[%clk 0:02:41]} 9. O-O {[%clk 0:02:39]}  Bd6 {[%clk 0:02:38]} 10. e4 {[%clk 0:02:30]}  O-O {[%clk 0:02:34]} 11. f3 {[%clk 0:02:14]}  Rc8 {[%clk 0:02:23]} 12. Re1 {[%clk 0:02:09]}  h6 {[%clk 0:02:20]} 13. Nf1 {[%clk 0:02:09]}  d4 {[%clk 0:02:13]} 14. Ng3 {[%clk 0:02:02]}  Ne7 {[%clk 0:02:09]} 15. Bd2 {[%clk 0:01:42]}  b5 {[%clk 0:02:03]} 16. Rc1 {[%clk 0:00:53]}  Qd7 {[%clk 0:02:01]} 17. Re2 {[%clk 0:00:49]}  Rxc1 {[%clk 0:01:40]} 18. Qxc1 {[%clk 0:00:47]}  Rc8 {[%clk 0:01:40]} 19. Qd1 {[%clk 0:00:46]}  b4 {[%clk 0:01:35]} 20. Qf1 {[%clk 0:00:36]}  Qb5 {[%clk 0:01:30]} 21. Re1 {[%clk 0:00:33]}  Rc2 {[%clk 0:01:25]} 22. Rb1 {[%clk 0:00:25]}  a5 {[%clk 0:01:22]} 23. Nc1 {[%clk 0:00:18]}  a4 {[%clk 0:01:05]} 24. Be1 {[%clk 0:00:17]}  Nd7 {[%clk 0:00:54]} 25. Nge2 {[%clk 0:00:16]}  Ng6 {[%clk 0:00:50]} 26. g3 {[%clk 0:00:15]}  Nc5 {[%clk 0:00:32]} 27. f4 {[%clk 0:00:13]}  exf4 {[%clk 0:00:09]} 28. Nxf4 {[%clk 0:00:12]}  Nxf4 {[%clk 0:00:07]} 29. gxf4 {[%clk 0:00:11]}  Ne6 {[%clk 0:00:06]} 30. Bg3 {[%clk 0:00:10]}  Qh5 {[%clk 0:00:03]} 31. Ne2 {[%clk 0:00:06]}  Qxe2 {[%clk 0:00:03]} 32. Qxe2 {[%clk 0:00:05]}  Rxe2 {[%clk 0:00:04]} 33. f5 {[%clk 0:00:03]}  Bxg3 {[%clk 0:00:04]} 34. hxg3 {[%clk 0:00:03]}  Ng5 {[%clk 0:00:03]} 35. Kf1 {[%clk 0:00:01]}  Rc2 {[%clk 0:00:03]} 36. Ke1 {[%clk 0:00:01]}  Nf3+ {[%clk 0:00:03]} 37. Kd1 {[%clk 0:00:02]}  Rd2+ {[%clk 0:00:03]} 38. Kc1 {[%clk 0:00:02]}  Rxd3 {[%clk 0:00:03]} 39. Kc2 {[%clk 0:00:03]}  Rd2+ {[%clk 0:00:03]} 40. Kc1 {[%clk 0:00:03]}  Rg2 {[%clk 0:00:02]} 41. a3 {[%clk 0:00:02]}  Rg1+ {[%clk 0:00:02]} 42. Kc2 {[%clk 0:00:03]}  Rxb1 {[%clk 0:00:02]} 43. Kxb1 {[%clk 0:00:03]}  d3 {[%clk 0:00:03]} 44. Kc1 {[%clk 0:00:02]}  bxa3 {[%clk 0:00:02]} 45. bxa3 {[%clk 0:00:02]}  Kf8 {[%clk 0:00:02]} 0-1


[Site "https://www.chess.com"]

[Event "Titled Tuesday Blitz March 21 Early 2023"]
[White "Le, Tuan Minh"]
[Black "Indjic, Aleksandar"]
[WhiteFideId "12401153"]
[BlackFideId "911925"]
[WhiteElo "2558"]
[BlackElo "2614"]
[Result "1-0"]
[Round "05"]
[TimeControl "180+2"]
[Date "2023.03.21"]
[WhiteClock "0:00:11"]
[BlackClock "0:00:21"]

1. d4 {[%clk 0:03:00]}  d6 {[%clk 0:03:00]} 2. e4 {[%clk 0:03:00]}  Nf6 {[%clk 0:02:59]} 3. Nc3 {[%clk 0:03:00]}  e5 {[%clk 0:03:00]} 4. Nf3 {[%clk 0:02:58]}  Nbd7 {[%clk 0:03:00]} 5. Bc4 {[%clk 0:02:57]}  Be7 {[%clk 0:03:00]} 6. O-O {[%clk 0:02:58]}  h6 {[%clk 0:03:00]} 7. Re1 {[%clk 0:02:56]}  c6 {[%clk 0:02:59]} 8. a4 {[%clk 0:02:53]}  Qc7 {[%clk 0:03:00]} 9. Ba2 {[%clk 0:02:53]}  a5 {[%clk 0:02:56]} 10. h3 {[%clk 0:02:35]}  g5 {[%clk 0:02:55]} 11. Nh2 {[%clk 0:02:20]}  Nf8 {[%clk 0:02:55]} 12. Be3 {[%clk 0:02:15]}  Ng6 {[%clk 0:02:54]} 13. Qd2 {[%clk 0:01:55]}  Nf4 {[%clk 0:02:53]} 14. Rad1 {[%clk 0:01:54]}  Rg8 {[%clk 0:02:52]} 15. dxe5 {[%clk 0:01:22]}  dxe5 {[%clk 0:02:51]} 16. Nf3 {[%clk 0:01:23]}  Ne6 {[%clk 0:02:30]} 17. Nd5 {[%clk 0:00:59]}  cxd5 {[%clk 0:02:21]} 18. exd5 {[%clk 0:01:00]}  Ne4 {[%clk 0:02:19]} 19. dxe6 {[%clk 0:00:43]}  Bxe6 {[%clk 0:02:19]} 20. Qd3 {[%clk 0:00:44]}  Bxa2 {[%clk 0:01:49]} 21. Qxe4 {[%clk 0:00:44]}  Be6 {[%clk 0:01:25]} 22. Nxe5 {[%clk 0:00:42]}  Rd8 {[%clk 0:01:18]} 23. Rxd8+ {[%clk 0:00:38]}  Bxd8 {[%clk 0:01:18]} 24. Ng4 {[%clk 0:00:36]}  h5 {[%clk 0:01:14]} 25. Nh6 {[%clk 0:00:32]}  Rg6 {[%clk 0:01:13]} 26. Nf5 {[%clk 0:00:32]}  Kf8 {[%clk 0:01:10]} 27. Bd4 {[%clk 0:00:28]}  Bf6 {[%clk 0:01:07]} 28. Ne3 {[%clk 0:00:17]}  Qc6 {[%clk 0:01:04]} 29. Qxc6 {[%clk 0:00:17]}  bxc6 {[%clk 0:01:05]} 30. Bxf6 {[%clk 0:00:18]}  Rxf6 {[%clk 0:01:05]} 31. b3 {[%clk 0:00:19]}  Ke7 {[%clk 0:00:59]} 32. f3 {[%clk 0:00:18]}  Kd6 {[%clk 0:00:58]} 33. Kf2 {[%clk 0:00:19]}  Kc5 {[%clk 0:00:58]} 34. Nf1 {[%clk 0:00:16]}  Kb4 {[%clk 0:00:56]} 35. Ng3 {[%clk 0:00:17]}  h4 {[%clk 0:00:54]} 36. Ne4 {[%clk 0:00:17]}  Rf5 {[%clk 0:00:55]} 37. Rd1 {[%clk 0:00:15]}  Bd5 {[%clk 0:00:54]} 38. Rd4+ {[%clk 0:00:14]}  Ka3 {[%clk 0:00:54]} 39. Nd6 {[%clk 0:00:14]}  Re5 {[%clk 0:00:52]} 40. Nc4+ {[%clk 0:00:15]}  Bxc4 {[%clk 0:00:50]} 41. Rxc4 {[%clk 0:00:15]}  c5 {[%clk 0:00:51]} 42. f4 {[%clk 0:00:16]}  Rf5 {[%clk 0:00:50]} 43. g3 {[%clk 0:00:11]}  Kb2 {[%clk 0:00:40]} 44. gxh4 {[%clk 0:00:12]}  gxh4 {[%clk 0:00:30]} 45. Kf3 {[%clk 0:00:12]}  Rf6 {[%clk 0:00:18]} 46. Rxc5 {[%clk 0:00:11]}  Rg6 {[%clk 0:00:19]} 47. Rxa5 {[%clk 0:00:08]}  Rg3+ {[%clk 0:00:19]} 48. Ke4 {[%clk 0:00:09]}  Kxc2 {[%clk 0:00:20]} 49. b4 {[%clk 0:00:08]}  Kb3 {[%clk 0:00:20]} 50. b5 {[%clk 0:00:07]}  Kb4 {[%clk 0:00:20]} 51. Ra8 {[%clk 0:00:07]}  Kc5 {[%clk 0:00:19]} 52. Rc8+ {[%clk 0:00:07]}  Kb6 {[%clk 0:00:20]} 53. Rc6+ {[%clk 0:00:08]}  Kb7 {[%clk 0:00:20]} 54. Rf6 {[%clk 0:00:08]}  Rxh3 {[%clk 0:00:20]} 55. Rxf7+ {[%clk 0:00:09]}  Kb6 {[%clk 0:00:21]} 56. Rf6+ {[%clk 0:00:09]}  Kb7 {[%clk 0:00:22]} 57. a5 {[%clk 0:00:10]}  Rb3 {[%clk 0:00:21]} 58. Rf7+ {[%clk 0:00:10]}  Kb8 {[%clk 0:00:22]} 59. b6 {[%clk 0:00:10]}  h3 {[%clk 0:00:22]} 60. Kd5 {[%clk 0:00:10]}  Rb1 {[%clk 0:00:20]} 61. Rh7 {[%clk 0:00:10]}  Rd1+ {[%clk 0:00:20]} 62. Kc6 {[%clk 0:00:10]}  Rc1+ {[%clk 0:00:21]} 63. Kb5 {[%clk 0:00:11]} 1-0


[Site "https://www.chess.com"]

[Event "Titled Tuesday Blitz March 21 Early 2023"]
[White "Seo, Jung Min"]
[Black "Paravyan, David"]
[WhiteFideId "1734687"]
[BlackFideId "4194985"]
[WhiteElo "2468"]
[BlackElo "2577"]
[Result "1/2-1/2"]
[Round "05"]
[TimeControl "180+2"]
[Date "2023.03.21"]
[WhiteClock "0:00:09"]
[BlackClock "0:00:03"]

1. e4 {[%clk 0:02:59]}  e5 {[%clk 0:03:00]} 2. Nf3 {[%clk 0:02:59]}  Nf6 {[%clk 0:03:00]} 3. d4 {[%clk 0:02:54]}  Nxe4 {[%clk 0:03:00]} 4. Bd3 {[%clk 0:02:54]}  d5 {[%clk 0:02:59]} 5. Nxe5 {[%clk 0:02:55]}  Bd6 {[%clk 0:03:00]} 6. O-O {[%clk 0:02:53]}  O-O {[%clk 0:03:01]} 7. c4 {[%clk 0:02:53]}  c5 {[%clk 0:03:01]} 8. cxd5 {[%clk 0:02:52]}  Nf6 {[%clk 0:03:01]} 9. Nf3 {[%clk 0:02:39]}  cxd4 {[%clk 0:03:00]} 10. Nxd4 {[%clk 0:02:38]}  Nxd5 {[%clk 0:02:51]} 11. Nc3 {[%clk 0:02:25]}  Nxc3 {[%clk 0:02:51]} 12. bxc3 {[%clk 0:02:25]}  Nc6 {[%clk 0:02:52]} 13. Nxc6 {[%clk 0:02:24]}  bxc6 {[%clk 0:02:53]} 14. Qf3 {[%clk 0:02:22]}  Be6 {[%clk 0:02:49]} 15. Qxc6 {[%clk 0:02:08]}  Bd5 {[%clk 0:02:39]} 16. Qa4 {[%clk 0:01:54]}  Re8 {[%clk 0:02:11]} 17. Bf4 {[%clk 0:01:35]}  Qh4 {[%clk 0:01:57]} 18. g3 {[%clk 0:01:12]}  Qg4 {[%clk 0:01:39]} 19. c4 {[%clk 0:01:05]}  Bb7 {[%clk 0:01:26]} 20. Rab1 {[%clk 0:00:55]}  Bf3 {[%clk 0:01:20]} 21. Rfe1 {[%clk 0:00:44]}  Rxe1+ {[%clk 0:00:48]} 22. Rxe1 {[%clk 0:00:43]}  Bf8 {[%clk 0:00:48]} 23. Qc2 {[%clk 0:00:36]}  g6 {[%clk 0:00:42]} 24. Bf1 {[%clk 0:00:29]}  Rd8 {[%clk 0:00:37]} 25. c5 {[%clk 0:00:20]}  Qc8 {[%clk 0:00:27]} 26. Be3 {[%clk 0:00:14]}  Re8 {[%clk 0:00:22]} 27. Rc1 {[%clk 0:00:10]}  Bc6 {[%clk 0:00:19]} 28. Bg2 {[%clk 0:00:10]}  h5 {[%clk 0:00:16]} 29. Bxc6 {[%clk 0:00:10]}  Qxc6 {[%clk 0:00:17]} 30. Qc4 {[%clk 0:00:10]}  Re4 {[%clk 0:00:15]} 31. Qd3 {[%clk 0:00:10]}  h4 {[%clk 0:00:16]} 32. Rd1 {[%clk 0:00:10]}  h3 {[%clk 0:00:15]} 33. Qd5 {[%clk 0:00:10]}  Qa4 {[%clk 0:00:07]} 34. Qb3 {[%clk 0:00:08]}  Qc6 {[%clk 0:00:06]} 35. Qd5 {[%clk 0:00:09]}  Qa4 {[%clk 0:00:06]} 36. Qb3 {[%clk 0:00:09]}  Qc6 {[%clk 0:00:03]} 37. Qd5 {[%clk 0:00:09]} 1/2-1/2


[Site "https://www.chess.com"]

[Event "Titled Tuesday Blitz March 21 Early 2023"]
[White "Pranav, V"]
[Black "Parkhov, Yair"]
[WhiteFideId "25060783"]
[BlackFideId "2813408"]
[WhiteElo "2500"]
[BlackElo "2421"]
[Result "1-0"]
[Round "05"]
[TimeControl "180+2"]
[Date "2023.03.21"]
[WhiteClock "0:00:41"]
[BlackClock "0:00:06"]

1. e4 {[%clk 0:03:00]}  e5 {[%clk 0:02:58]} 2. Nf3 {[%clk 0:03:01]}  Nc6 {[%clk 0:02:58]} 3. Bb5 {[%clk 0:03:01]}  a6 {[%clk 0:02:58]} 4. Ba4 {[%clk 0:03:01]}  Bc5 {[%clk 0:02:58]} 5. O-O {[%clk 0:02:58]}  b5 {[%clk 0:02:54]} 6. Bb3 {[%clk 0:02:58]}  Nf6 {[%clk 0:02:54]} 7. c3 {[%clk 0:02:56]}  d5 {[%clk 0:02:18]} 8. exd5 {[%clk 0:02:45]}  Nxd5 {[%clk 0:02:15]} 9. d4 {[%clk 0:02:24]}  exd4 {[%clk 0:02:13]} 10. cxd4 {[%clk 0:02:22]}  Be7 {[%clk 0:02:07]} 11. Nc3 {[%clk 0:02:09]}  Nxc3 {[%clk 0:02:01]} 12. bxc3 {[%clk 0:02:09]}  O-O {[%clk 0:01:58]} 13. h3 {[%clk 0:02:08]}  Bf5 {[%clk 0:01:57]} 14. Re1 {[%clk 0:02:05]}  Na5 {[%clk 0:01:54]} 15. Ne5 {[%clk 0:01:59]}  Nxb3 {[%clk 0:00:58]} 16. Nc6 {[%clk 0:01:35]}  Nxa1 {[%clk 0:00:58]} 17. Nxd8 {[%clk 0:01:36]}  Bxd8 {[%clk 0:00:59]} 18. Qf3 {[%clk 0:01:36]}  Nc2 {[%clk 0:00:55]} 19. Re2 {[%clk 0:01:23]}  Bg5 {[%clk 0:00:44]} 20. Bxg5 {[%clk 0:01:02]}  Bg6 {[%clk 0:00:39]} 21. h4 {[%clk 0:01:02]}  h5 {[%clk 0:00:32]} 22. Qc6 {[%clk 0:00:54]}  b4 {[%clk 0:00:26]} 23. Qa4 {[%clk 0:00:50]}  bxc3 {[%clk 0:00:13]} 24. Rxc2 {[%clk 0:00:50]}  Rfe8 {[%clk 0:00:10]} 25. Rxc3 {[%clk 0:00:47]}  Re1+ {[%clk 0:00:10]} 26. Kh2 {[%clk 0:00:48]}  Rb8 {[%clk 0:00:10]} 27. Re3 {[%clk 0:00:44]}  Rxe3 {[%clk 0:00:07]} 28. Bxe3 {[%clk 0:00:43]}  Be4 {[%clk 0:00:06]} 29. Qxa6 {[%clk 0:00:41]} 1-0


[Site "https://www.chess.com"]